Cogmind - Beta 14 @@@ ROGUE MODE // 2025.03.05 @ 15:58:49 Player: osman sinnoks Result: Destroyed by P-60 Hacker with Shock Rifle Performance ------------- Evolutions (3) 1500 Regions Visited (6) 1200 Robots Destroyed (60) 300 Value Destroyed (1744) 1744 Prototype IDs (2) 40 Alien Tech Used (0) 0 Bonus (-127) -127 TOTAL SCORE: 4657 Bonus ------- Follower Combat Kills 95 Friendly Fire -222 Cogmind --------- Core Integrity 0/700 Matter 210/300 Energy 99/100 System Corruption 15% Temperature Cool (0) Movement Core (50) Location -7/Factory Parts ------- > --- POWER (1) -------- (None) > --- PROPULSION (3) --- (None) > --- UTILITY (6) ------ Improved Signal Interpreter Advanced Targeting Computer Target Analyzer > --- WEAPON (3) ------- (None) > --- INVENTORY (5) ---- Improved Deuterium Engine Improved Titanium Leg Assault Cannon Axe Peak State ------------ > --- POWER ------------ Nuclear Core > --- PROPULSION ------- Improved Titanium Leg Improved Titanium Leg Improved Titanium Leg > --- UTILITY ---------- Improved Signal Interpreter Advanced Targeting Computer Improved Melee Analysis Suite Target Analyzer Improved Light Armor Plating Reactive Plating > --- WEAPON ----------- Flak Gun Gauss Cannon Heavy Hammer > --- INVENTORY -------- Improved Deuterium Engine Improved Titanium Leg Improved Heat Sink Assault Cannon Axe [Rating: 45] Favorites ----------- Power Nuclear Core Engine Ion Engine Power Core Nuclear Core Propulsion Improved Titanium Leg Treads Light Treads Leg Improved Titanium Leg Utility Improved Signal Interpreter Device Improved Heat Sink Storage Small Storage Unit Processor Improved Signal Interpreter Protection Improved Light Armor Plating Weapon Heavy Hammer Energy Gun Beamcaster Ballistic Gun Shotgun Ballistic Cannon Gauss Cannon Launcher Grenade Launcher Impact Weapon Heavy Hammer Build | -11 -10 -10 -10 -9 -8 -7 ------- Run | Yrd Mat Min Exi Min Mat Fac Slots Evolved 6 | . . . . . 4 2 Power . | . . . . . . . Propulsion 1 | . . . . . 1 . Utility 4 | . . . . . 2 2 Weapon 1 | . . . . . 1 . Parts Attached 53 | 7 7 2 . 8 16 13 Power 5 | 1 1 . . 2 1 . Engine 3 | 1 . . . 2 . . Core 2 | . 1 . . . 1 . Reactor . | . . . . . . . Propulsion 12 | 2 2 . . 3 4 1 Treads 1 | . . . . . 1 . Leg 11 | 2 2 . . 3 3 1 Wheel . | . . . . . . . Hover . | . . . . . . . Flight . | . . . . . . . Utility 12 | 2 . . . 1 6 3 Device 4 | 1 . . . 1 2 . Storage 1 | 1 . . . . . . Processor 4 | . . . . . 2 2 Hackware . | . . . . . . . Protection 3 | . . . . . 2 1 Artifact . | . . . . . . . Weapon 24 | 2 4 2 . 2 5 9 Energy Gun 5 | 2 . . . . 3 . Energy Cannon . | . . . . . . . Ballistic Gun 5 | . 1 . . . . 4 Ballistic Cannon 2 | . . . . . 1 1 Launcher 7 | . 2 1 . 1 . 3 Special Weapon . | . . . . . . . Impact Weapon 5 | . 1 1 . 1 1 1 Slashing Weapon . | . . . . . . . Piercing Weapon . | . . . . . . . Special Melee Weapon . | . . . . . . . Unidentified Prototypes 2 | . . . . . 1 1 Parts Lost 16 | . . . 3 1 1 11 Power 2 | . . . 1 . . 1 Propulsion 4 | . . . 1 . . 3 Utility 4 | . . . 1 . . 3 Weapon 6 | . . . . 1 1 4 Highest Loss Streak 11 | . . . 3 1 1 11 To Critical Strikes . | . . . . . . . Average Slot Usage (%) 93 | . 100 100 92 68 91 94 Engine 3 | . 12 . . 12 . . Core 6 | . 1 14 11 . 8 6 Treads 1 | . . . . . 5 . Leg 24 | . 28 28 28 27 21 21 Device 8 | . 14 14 11 1 10 4 Storage 4 | . 14 14 14 . . . Processor 13 | . . . . . 14 24 Protection 7 | . . . . . 6 13 Energy Gun 2 | . 6 . . . 9 . Ballistic Gun 4 | . 8 . . . . 6 Ballistic Cannon 2 | . . . . . 2 4 Launcher 5 | . 9 22 11 12 . 1 Impact Weapon 7 | . 3 5 14 14 12 6 Peak Build Rating 45 | 7 10 11 11 9 38 45 Average Rating 25 | 4 7 10 9 6 28 40 On Entrance 11 | . 7 10 11 3 9 38 Naked Turns . | . . . . . . . Heaviest Build 34 | 15 16 17 16 11 24 34 Greatest Support 60 | 20 20 20 20 20 60 60 Greatest Overweight (x) 1 | . . . . 1 1 . Average Overweight (x) . | . . . . . . . Largest Inventory Capacity 8 | 8 8 8 8 5 5 5 Average Capacity 5 | 7 8 8 7 5 5 5 Most Carried 8 | 6 8 8 8 5 5 5 Average Carried 5 | 3 7 7 7 4 4 4 Final Capacity 8 | 8 8 8 5 5 5 5 Final Carried 8 | 4 8 8 5 5 5 4 Class Distribution -------------------- 75% | Mutant 24% | Scavenger-Mutant Dominant Class ---------------- Mutant | -10/Materials Scavenger-Mutant | -10/Mines Scavenger-Mutant | -10/Exiles Mutant | -9/Mines Mutant | -8/Materials Mutant | -7/Factory Resources | -11 -10 -10 -10 -9 -8 -7 ----------- Run | Yrd Mat Min Exi Min Mat Fac Matter Collected 1093 | 242 143 54 . 217 161 276 Remotely . | . . . . . . . Salvage Created 1671 | 112 239 205 . 143 334 638 Parts 76 | 8 15 16 . 11 3 23 Haulers Intercepted 1 | . . . . . . 1 Recyclers Shooed 3 | 1 . 1 . . 1 . Parts Field Recycled . | . . . . . . . Retrieved Matter . | . . . . . . . Parts Self-Destructed . | . . . . . . . Prevented . | . . . . . . . Kills | -11 -10 -10 -10 -9 -8 -7 ------- Run | Yrd Mat Min Exi Min Mat Fac Combat Hostiles Destroyed 38 | . 6 7 . 6 3 16 Melee 11 | . 3 . . 1 2 5 Guns 1 | . . . . . . 1 AOE 18 | . 2 7 . 5 . 4 Classes Destroyed 14 | 2 4 1 . 1 . 6 Worker 5 | . . . . . . 5 Builder 3 | . 1 1 . . . 1 Tunneler 4 | 2 . 1 . 1 . . Hauler 1 | . . . . . . 1 Recycler 3 | 1 . . . . 2 . Mechanic 2 | . . 1 . . . 1 Operator 1 | . 1 . . . . . Watcher 2 | . 1 . . . 1 . Swarmer 6 | . . . . 3 . 3 Grunt 26 | . 6 7 . 3 3 7 Brawler 2 | . . . . . . 2 Protector 1 | . . . . . . 1 Hunter 2 | . . . . . . 2 Programmer 1 | . . . . . . 1 Thug 1 | . . 1 . . . . Best Kill Streak 9 | 3 5 9 . 3 3 7 Combat Bots Only 7 | . 4 7 . 3 1 4 Max Kills in Single Turn 4 | 1 2 4 . 1 1 4 Gunslinging . | . . . . . . . Exploded 4 | . 1 4 . 1 . 2 Melee 1 | . 1 . . 1 1 1 Uniques/NPCs Destroyed . | . . . . . . . Combat | -11 -10 -10 -10 -9 -8 -7 -------- Run | Yrd Mat Min Exi Min Mat Fac Hostile Shots Fired 272 | . 41 3 13 15 7 193 Missed 93 | . 11 2 6 4 1 69 Damage Taken 3269 | . 381 53 213 184 101 2337 Core 831 | . 51 . 30 34 14 702 Absorbed by Shields . | . . . . . . . Ignored by Resistances 39 | . . . . . . 39 Regen/Repaired (Parts) 55 | . . . . . . 55 Core Remaining (%) 83 | 100 . . . 54 97 . Volleys Fired 45 | 9 6 4 . 7 3 16 Largest 2 | 2 2 2 . 1 1 2 Hottest 100 | 100 50 60 . 30 75 71 Shots Fired 72 | 18 11 8 1 7 3 24 Gun 37 | 18 6 . . . 1 12 Cannon 4 | . . . . . 2 2 Launcher 31 | . 5 8 1 7 . 10 Special . | . . . . . . . Kinetic 21 | . 5 . . . 2 14 Thermal 20 | 18 1 . . . 1 . Explosive 31 | . 5 8 1 7 . 10 Electromagnetic . | . . . . . . . Robot Hit Streak 12 | 4 5 3 3 5 1 12 Robot Miss Streak 3 | 3 2 2 . 1 1 3 Penetration Max . | . . . . . . . Secondary Targets . | . . . . . . . Shots Hit Robots 113 | 8 18 7 1 5 12 62 Core Hits 88 | 4 9 24 1 10 3 37 Critical Kills 4 | . . . . 1 1 2 Critical Parts Destroyed 14 | . 2 . . . 2 10 Critical Strikes 19 | . 2 . . 1 4 12 Burn 1 | . . . . . 1 . Smash 18 | . 2 . . 1 3 12 Melee Attacks 82 | . 16 2 . 2 11 51 Impact 82 | . 16 2 . 2 11 51 Slashing . | . . . . . . . Piercing . | . . . . . . . Sneak Attacks 5 | . . . . 1 1 3 Combat Hostiles . | . . . . . . . Follow-up Attacks 1 | . . . . . 1 . Damage Inflicted 5744 | 112 552 773 3 374 498 3432 Guns 356 | 112 29 . . . 21 194 Cannons 23 | . . . . . 23 . Explosions 2782 | . 215 725 3 261 . 1578 Melee 2563 | . 291 45 . 113 454 1660 Ramming 20 | . 17 3 . . . . Kinetic 246 | . 29 . . . 23 194 Thermal 133 | 112 . . . . 21 . Explosive 2782 | . 215 725 3 261 . 1578 Electromagnetic . | . . . . . . . Impact 2563 | . 291 45 . 113 454 1660 Slashing . | . . . . . . . Piercing . | . . . . . . . Highest Corruption 14 | . 2 2 2 2 . 14 Average Corruption 2 | . 2 2 2 2 . 5 Corruption Purged . | . . . . . . . Corruption Blocked . | . . . . . . . Effects 14 | . 1 3 1 4 . 5 Message Errors 3 | . . . . 1 . 2 Matter Fused 5 | . . 2 . 3 . . Energy Discharges 2 | . 1 . . . . 1 Data Loss (minor) 2 | . . 1 . . . 1 Data Loss (major) 1 | . . . . . . 1 Misfires 1 | . . . 1 . . . Overload Shots . | . . . . . . . Overflow Damage 901 | . 74 5 . 34 124 664 Projectiles . | . . . . . . . Explosions 36 | . . . . 10 . 26 Melee 865 | . 74 5 . 24 124 638 Knockbacks 14 | . 1 1 . 1 1 10 Impact 13 | . 1 1 . 1 . 10 Kinetic 1 | . . . . . 1 . Secondary . | . . . . . . . Self-Inflicted Damage 389 | . . 40 4 71 . 274 Shots 14 | . . 2 1 3 . 8 Rammed . | . . . . . . . Targets Rammed 5 | . 4 1 . . . . Kicked 5 | . 4 1 . . . . Crushed . | . . . . . . . Highest Temperature 473 | 130 13 21 . 5 8 473 Average Temperature 107 | 65 5 11 . 4 6 209 Received Heat Transfer 756 | . 240 9 . 42 90 375 Effects 2 | . . . . . . 2 Shutdowns 1 | . . . . . . 1 Matter Decay 1 | . . . . . . 1 Siege Activations . | . . . . . . . Robots Corrupted 14 | . 2 1 . 1 2 8 Combat Hostiles 7 | . 1 . . . 1 5 Parts Fried 17 | . 4 3 . 3 5 2 Impact Corruptions 38 | . 3 1 . 2 6 26 Robots Melted . | . . . . . . . Combat Hostiles . | . . . . . . . Parts Melted 2 | 2 . . . . . . Heat Transferred 444 | 333 . . . . 111 . Parts Sabotaged . | . . . . . . . Parts Stolen . | . . . . . . . Parts Stripped . | . . . . . . . Power Chain Reactions . | . . . . . . . Alert | -11 -10 -10 -10 -9 -8 -7 ------- Run | Yrd Mat Min Exi Min Mat Fac Peak Influence 302 | 15 288 302 . 260 196 265 Initial 101 | . 9 34 . . 101 13 Average 104 | 5 93 278 . 143 113 60 Maximum Alert Level 1 | . 1 1 . 1 . 1 Low Security (%) 80 | 100 81 6 . 51 100 92 Level 1 19 | . 18 93 . 48 . 7 Level 2 . | . . . . . . . Level 3 . | . . . . . . . Level 4 . | . . . . . . . Level 5 . | . . . . . . . High Security . | . . . . . . . Max Security . | . . . . . . . Squads Dispatched 7 | . 1 2 . . . 4 Investigation . | . . . . . . . Extermination 2 | . . . . . . 2 Reinforcement 3 | . 1 . . . . 2 Assault 2 | . . 2 . . . . Garrison . | . . . . . . . Intercept . | . . . . . . . Searches Triggered . | . . . . . . . Construction Impeded 1 | . . . . . . 1 Haulers Reinforced 1 | . . . . . . 1 Active Scanning Responses . | . . . . . . . Cargo Convoy Interrupts 1 | . . . . . . 1 Stealth | -11 -10 -10 -10 -9 -8 -7 --------- Run | Yrd Mat Min Exi Min Mat Fac Distress Signals 1 | . 1 . . . . . Communications Jammed . | . . . . . . . Distress Signals . | . . . . . . . Times Spotted 75 | . 12 9 8 7 6 33 Peak Tracking Total 13 | . 5 6 9 3 1 13 Tactical Retreats 1 | . . . . . . 1 Traps | -11 -10 -10 -10 -9 -8 -7 ------- Run | Yrd Mat Min Exi Min Mat Fac Traps Triggered 2 | . 1 . . . . 1 Indirectly . | . . . . . . . Trap Hack Attempts . | . . . . . . . Triggered . | . . . . . . . Disarmed . | . . . . . . . Reprogrammed . | . . . . . . . Reused . | . . . . . . . Traps Extracted . | . . . . . . . Installed . | . . . . . . . Triggered . | . . . . . . . Machines | -11 -10 -10 -10 -9 -8 -7 ---------- Run | Yrd Mat Min Exi Min Mat Fac Machines Disabled 9 | . 1 2 2 4 . . Max in Single Turn 2 | . 1 2 2 2 . . Garrison Access 1 | . . . . . 1 . Machines Repaired . | . . . . . . . Machines Dismantled . | . . . . . . . Machines Sabotaged . | . . . . . . . Overloaded Fab Kills . | . . . . . . . Hacking | -11 -10 -10 -10 -9 -8 -7 --------- Run | Yrd Mat Min Exi Min Mat Fac Machines Accessed 13 | . 5 1 . . 2 5 Terminals 8 | . 5 . . . 1 2 Fabricators . | . . . . . . . Repair Stations 1 | . . . . . . 1 Recycling Units 1 | . . . . . . 1 Scanalyzers . | . . . . . . . Garrison Access 2 | . . . . . 1 1 Total Hacks 26 | . 13 1 . . 4 8 Successful 11 | . 5 1 . . 2 3 Failed 15 | . 8 . . . 2 5 Catastrophic 5 | . 2 . . . 1 2 Database Lockouts . | . . . . . . . Manual 16 | . 12 . . . 2 2 Terminals 18 | . 13 . . . 2 3 Fabricators . | . . . . . . . Repair Stations 3 | . . . . . . 3 Recycling Units 1 | . . . . . . 1 Scanalyzers . | . . . . . . . Garrison Access 3 | . . . . . 2 1 Terminal Hacks 2 | . 1 1 . . . . Open Door 1 | . . 1 . . . . Alert Level 1 | . 1 . . . . . Fabricator Hacks . | . . . . . . . Repair Station Hacks 2 | . . . . . . 2 Scan Component 1 | . . . . . . 1 Repair 1 | . . . . . . 1 Recycling Unit Hacks . | . . . . . . . Scanalyzer . | . . . . . . . Garrison Access Hacks 1 | . . . . . 1 . Seal Access 1 | . . . . . 1 . Unauthorized Hacks 6 | . 4 . . . 1 1 Terminals 6 | . 4 . . . 1 1 Botnet 6 | . 4 . . . 1 1 Fabricators . | . . . . . . . Repair Stations . | . . . . . . . Recycling Units . | . . . . . . . Scanalyzers . | . . . . . . . Garrison Access . | . . . . . . . Data Cores Recovered . | . . . . . . . Used . | . . . . . . . Hacking Detections 11 | . 5 . . . 2 4 Full Trace Events 2 | . 2 . . . . . Feedback Events . | . . . . . . . Feedback Blocked . | . . . . . . . Robot Schematics Acquired . | . . . . . . . Robots Built . | . . . . . . . Authchips . | . . . . . . . Time . | . . . . . . . Total Robot Build Rating . | . . . . . . . Part Schematics Acquired . | . . . . . . . Parts Built . | . . . . . . . Authchips . | . . . . . . . Time . | . . . . . . . Total Part Build Rating . | . . . . . . . Parts Repaired 1 | . . . . . . 1 Time 32 | . . . . . . 32 Parts Recycled . | . . . . . . . Recycled Matter . | . . . . . . . Retrieved Matter . | . . . . . . . Retrieved Components . | . . . . . . . Parts Scanalyzed . | . . . . . . . Part Schematics Acquired . | . . . . . . . Parts Damaged . | . . . . . . . Bothacking | -11 -10 -10 -10 -9 -8 -7 ------------ Run | Yrd Mat Min Exi Min Mat Fac Used RIF Installer . | . . . . . . . Robots Hacked . | . . . . . . . Non-combat . | . . . . . . . Combat . | . . . . . . . Robot Hacks Applied . | . . . . . . . Relay Couplers Released . | . . . . . . . Fabnet Peak Effective % . | . . . . . . . Robots Rewired . | . . . . . . . Allies Hacked . | . . . . . . . Hacks Repelled . | . . . . . . . Allies | -11 -10 -10 -10 -9 -8 -7 -------- Run | Yrd Mat Min Exi Min Mat Fac Total Allies 2 | . . 1 . 1 . . Largest Group 1 | . . 1 . 1 1 . Highest-Rated Group 31 | . . 31 . 31 31 . Highest-Rated Ally 31 | . . 31 . 31 31 . Total Orders . | . . . . . . . Ally Attacks 12 | . . 2 . 1 9 . Total Damage 170 | . . 43 . 20 107 . Kills 3 | . . 1 . 1 1 . Allies Corrupted . | . . . . . . . Allies Melted . | . . . . . . . Intel | -11 -10 -10 -10 -9 -8 -7 ------- Run | Yrd Mat Min Exi Min Mat Fac Robot Analysis Total . | . . . . . . . Derelict Logs Recovered . | . . . . . . . Drone Launches . | . . . . . . . Drone Recoveries . | . . . . . . . Exploration | -11 -10 -10 -10 -9 -8 -7 ------------- Run | Yrd Mat Min Exi Min Mat Fac Turns Passed 2713 | 113 421 294 60 181 553 1091 Spaces Moved 1694 | 64 250 226 59 123 337 635 Core 114 | 12 . . 17 4 . 81 Treads . | . . . . . . . Legs 1580 | 52 250 226 42 119 337 554 Wheels . | . . . . . . . Hover . | . . . . . . . Flight . | . . . . . . . Fastest Speed 50 | 50 120 120 50 100 120 50 Average Speed 122 | 106 120 120 99 119 140 119 Slowest Speed 190 | 120 120 120 120 120 190 130 Overloaded Moves . | . . . . . . . Propulsion Burnouts . | . . . . . . . Robots Hopped . | . . . . . . . Cave-ins Triggered . | . . . . . . . Exploration Rate (%) 27 | 4 43 58 12 27 27 21 Regions Visited 6 Branch Regions 3 Pre-discovered Areas . | . . . . . . . Known Exits Taken 1 | . . . . . 1 . Unknown Exits Taken 5 | 1 1 1 1 1 . . Scrap Searched 2 | . . . . 2 . . Spaces Dug . | . . . . . . . Terrain Destroyed 175 | . 9 31 10 38 . 87 Melee . | . . . . . . . Projectile 2 | . . . . . . 2 AOE 173 | . 9 31 10 38 . 85 Terrain Rammed . | . . . . . . . Walls Destroyed . | . . . . . . . Machines Disabled . | . . . . . . . Actions | -11 -10 -10 -10 -9 -8 -7 --------- Run | Yrd Mat Min Exi Min Mat Fac Total 2122 | 90 332 237 60 148 402 853 Wait 173 | . 36 . . . 13 124 Move 1688 | 63 249 225 58 122 336 635 Hop . | . . . . . . . Pick Up 42 | 11 8 1 . 4 13 5 Fast Attach 9 | . . . . 1 3 5 Attach 21 | 7 . . . 3 8 3 Detach 1 | . . . . . 1 . Swap 23 | . 7 2 . 4 5 5 Drop 35 | . 6 2 2 5 11 9 Fire 45 | 9 6 4 . 7 3 16 Melee 80 | . 16 2 . 2 9 51 Ram . | . . . . . . . Kick 5 | . 4 1 . . . . Crush . | . . . . . . . Escape Stasis . | . . . . . . . Rewire . | . . . . . . . Trap . | . . . . . . . Miscellaneous . | . . . . . . . Route ------- -11/Scrapyard -10/Materials -10/Mines -10/Exiles -9/Mines -8/Materials -7/Factory History --------- Turn | Location | Event 7 | -11/Scrapyard | Discovered new exit (range 15) 114 | -11/Scrapyard | Entered Materials 315 | -10/Materials | Build established: Mutant 513 | -10/Materials | Discovered new exit (range 10) 535 | -10/Materials | Entered Mines 536 | -10/Mines | Met a Derelict testing a Signal Generator 591 | -10/Mines | Destroyed 7 combat bots 674 | -10/Mines | Found the Drone Emporium 682 | -10/Mines | Found Prototype Device 780 | -10/Mines | Build established: Scavenger-Mutant 824 | -10/Mines | Deemed a non-threat by the Exiles lab entrance 824 | -10/Mines | Discovered new exit (range 5) 829 | -10/Mines | Entered Exiles 861 | -10/Exiles | Met 8R-AWN 869 | -10/Exiles | Attacked by the Exiles 883 | -10/Exiles | Discovered new exit (range 14) 889 | -10/Exiles | Entered Mines 913 | -9/Mines | Lost 3 parts (1p1n1u) 1003 | -9/Mines | Received a Mining Laser from a helpful Derelict 1043 | -9/Mines | Discovered new exit (range 8) 1070 | -9/Mines | Entered Materials 1070 | -8/Materials | Accompanied by 1 ally 1070 | -8/Materials | Evolved 4 slots: Propulsion x1, Utility x2, Weapon x1 1071 | -8/Materials | Identified Decoy Drone Bay 1591 | -8/Materials | Discovered new exit (range 12) 1610 | -8/Materials | Identified exit to Factory 1623 | -8/Materials | Entered Factory 1623 | -7/Factory | Evolved 2 slots: Utility x2 1687 | -7/Factory | Build established: Mutant 1997 | -7/Factory | Repaired Hvy. Hammer 2629 | -7/Factory | System corruption reached 10% 2636 | -7/Factory | Cargo convoy interrupted 2668 | -7/Factory | Core integrity fell below 50% 2683 | -7/Factory | Core integrity fell below 20% 2704 | -7/Factory | Lost 11 parts (1p3n3u4w) 2714 | -7/Factory | Destroyed by P-60 Hacker with Shock Rifle Last Messages --------------- effect. 02678_ P-60 Hacker resets U-05 Engineer, system corruption cleaned. 02680_ U-05 Engineer builds a Wall. 02680_ U-05 Engineer lays Concrete. 02681_ System corrupted: Component data lost. 02681_ Penetrated by Slug. 02681_ U-05 Engineer builds a Wall. 02683_ Penetrated by Slug. 02685_ Slug penetrates Earth. 02685_ P-60 Hacker resets P-60 Hacker, system corruption cleaned. 02686_ The unstable cave ceiling collapses. 02686_ U-05 Engineer lays Concrete. 02687_ K-01 Serf collects debris. 02690_ R-06 Scavenger collects Prc. Assault Rifle. 02690_ K-01 Serf collects debris. 02690_ U-05 Engineer builds a Wall. 02714_ Door malfunctions. Map ----- +----------------------------------------------------+ | ?????????????????????????????????????????????????? | | ?????????????????????????????????????????????????? | | ?????????????????????????????????????????????????? | | ?????????????????????????????????????????????????? | | ?????????????????????????????????????????????????? | | ?????????????????????????????????????????????????? | | ?????????????????????????????????????????????????? | | ?????????????????????????????????????????????????? | | ?????????##############??????????????????????????? | | ?????????# #??????????????????????????? | | ?????????# #??????????????????????????? | | ?????????# #??????????????????????????? | | ?????????# #??????????????????????????? | | ?????????# #??????????????????????????? | | ?????????# #??????????????????????????? | | ?????????# #??????????????????????????? | | ?????????# #??????????????????????????? | | ?????????# #??????????????????????????? | | ?????????# #??????????????????????????? | | ?????????# #??????????????????????????? | | ?????????# #??????????????????????????? | | ?????????#######+#############+#########?????????? | | ############# k ?????????? | | ! # p ????????? | | # ????????? | | / # @ ????????? | | # k r k ????????? | | ! # p#####/############ T#??????????? | | ! # #?? ????????????????????????? | | ] ? # #? ????????????????????????? | | ? # # ""???????????????????????? | | ??? / # ""???????????????????????? | | ??? # # """ """??????????????????????? | | ????? # # "Y ??????????????????????? | | ????? ?# # """ ??????????????????????? | | #+#######+### # ????????????????????????? | | #??####????????????????????????? | | #??????????????????????????????? | | """ """ """ """ #??????????????????????????????? | | """ """ """ """ #??????????????????????????????? | | """ """ """ """ #??????????????????????????????? | | #??????????????????????????????? | | """ """ """ """ #??????????????????????????????? | | """ """ """ """ ??????????????????????????????? | | """ """ """ """ ?????????????????????????????? | | ?? ?????????????????????????????? | | ? ? ???? ??????????????????????????????? | | ? ? ???????????????????????????????????? | | #+####?###?###???????????????????????????????????? | | ?????????????????????????????????????????????????? | +----------------------------------------------------+ Best States ------------- Heat Dissipation 48 Energy Generation 14 Energy Capacity 250 Matter Stores 300 Matter Capacity 300 Sight Range 16 Terrain Scan Density 10 Armor Coverage 300 Resistance: KI 20 Evasion (%) 55 Targeting Accuracy 8 Melee Accuracy 6 Target Analysis 5 Item Schematics ----------------- None Robot Schematics ------------------ None Fabricated ------------ Nothing Alien Tech Used ----------------- None Achievements -------------- None Challenges ------------ None Game ------ Seed TractorGhostDrivehammer Manual? 0 Play Time 00:31:33 Cumulative 32.0 hours Start 2025.03.05 @ 06:24:51 End 2025.03.05 @ 15:58:49 Sessions 3 Manual Loads 0 Difficulty Rogue Special Mode None Game No. 63 Rogue 63 Adventurer 0 Explorer 0 Win Type - Total 0 Types 0/0/0/0/0/0/0/0/0 Lore% 20 Gallery% 33 Achievement% 26 Wizard Run 0 Options --------- Layout 2 ASCII 0 Keyboard 0 Movement Mouse Keybinds 0 Fullscreen 1 Font 24/Smallcaps Map View 50x49 Zoom Use 0% Tactical HUD 1 Map Filters NONE Filters NONE Steam 1 RUN: 0aa41a7a-88e4-453e-ade6-5b659348cfe4